bitfinex/quotes_BTCUSD_20260310
["timestamp","ask_amount","ask_price","bid_price","bid_amount"]
[1773118889672,0.07155615,70091.0,70081.0,0.22642603]
[1773118890450,0.01540783,70090.0,70080.0,0.07134703]
[1773118891001,0.07155615,70091.0,70081.0,0.00144]
[1773118891634,0.00043631,70095.0,70082.0,0.07134499]
[1773118891845,0.24267562,70111.0,70085.0,0.01519592]
[1773118891846,0.0002163,70107.0,70085.0,0.01519592]
[1773118892010,0.0002163,70107.0,70091.0,0.22642603]
[1773118892210,0.0002163,70107.0,70094.0,0.01519592]
[1773118892433,0.0713119,70115.0,70098.0,0.01519592]
[1773118892710,0.0713119,70115.0,70099.0,0.22786603]
[1773118892911,0.0713119,70115.0,70101.0,0.22642603]
[1773118893244,0.08671973,70115.0,70101.0,0.22642603]
[1773118893609,0.08671973,70115.0,70103.0,0.07132362]
[1773118894212,0.0713119,70115.0,70104.0,0.23992997]
[1773118894444,0.07131141,70117.0,70105.0,0.22617405]
[1773118894656,0.0002163,70119.0,70107.0,0.22473405]
[1773118894868,0.0002163,70119.0,70110.0,0.01519592]
[1773118895065,0.0002163,70119.0,70111.0,0.22617405]
[1773118895536,0.00562,70124.0,70113.0,0.22473405]
[1773118895707,0.00562,70124.0,70114.0,0.07131243]
[1773118896011,0.01540783,70123.0,70106.0,0.07132018]
[1773118896451,0.01540783,70122.0,70107.0,0.00144]
[1773118897015,0.01540783,70122.0,70114.0,0.001]
[1773118897220,0.07130328,70123.0,70114.0,0.001]
[1773118897628,0.07153226,70125.0,70114.0,0.001]
[1773118897629,0.07151306,70134.0,70114.0,0.00244]
[1773118897836,0.07150678,70150.0,70122.0,0.22473405]
[1773118897837,0.01540783,70148.0,70122.0,0.22473405]
[1773118898038,0.07128026,70146.0,70132.0,0.01519592]
[1773118898377,0.00023,70150.0,70134.0,0.01519592]
[1773118898652,0.03023,70150.0,70137.0,0.22473405]
[1773118898999,0.00048,70151.0,70137.0,0.22473405]
[1773118899237,0.07126527,70161.0,70143.0,0.22473405]
[1773118899422,0.07126527,70161.0,70145.0,0.22473405]
[1773118899650,0.03,70159.0,70145.0,0.22473405]
[1773118899855,0.03,70159.0,70149.0,0.22818596]
[1773118900156,0.03,70159.0,70151.0,0.22473405]
[1773118900491,0.03,70155.0,70152.0,0.00144]
[1773118900734,0.00011367,70159.0,70152.0,0.00144]
[1773118901226,0.07152878,70167.0,70153.0,0.22473405]
[1773118901413,0.01353649,70166.0,70153.0,0.22473405]
[1773118901528,0.03,70165.0,70153.0,0.22473405]
[1773118901762,0.0002695,70197.0,70156.0,0.22473405]
[1773118901998,0.03048549,70207.0,70156.0,0.22473405]
[1773118901999,0.19917216,70219.0,70182.0,0.4870682]
[1773118902223,0.19917216,70219.0,70183.0,0.22617405]
[1773118902224,0.22707114,70214.0,70183.0,0.22617405]
[1773118902574,0.03,70210.0,70191.0,0.22473405]
[1773118902875,0.07120985,70215.0,70196.0,0.01366491]
[1773118903137,0.22707114,70213.0,70192.0,0.00144]
[1773118903335,0.01353649,70213.0,70193.0,0.22473405]
[1773118903539,0.00049899,70216.0,70200.0,0.22818596]
[1773118903744,0.01353649,70227.0,70200.0,0.22818596]
[1773118903745,0.07118957,70235.0,70205.0,0.22473405]
[1773118903934,0.07118957,70235.0,70208.0,0.01366491]
[1773118903935,0.01353649,70234.0,70208.0,0.01366491]
[1773118904145,0.07130321,70235.0,70209.0,0.23839896]
[1773118904146,0.00144,70233.0,70209.0,0.23839896]
[1773118904346,0.01353649,70231.0,70209.0,0.23983896]
[1773118904661,0.07130321,70235.0,70222.0,0.01366491]
[1773118904662,0.00011364,70235.0,70222.0,0.01366491]
[1773118904792,0.07118215,70243.0,70225.0,0.22473405]
[1773118905139,0.24060763,70242.0,70225.0,0.00011364]
[1773118905444,0.07118215,70243.0,70225.0,0.00011364]
[1773118905445,0.22707114,70241.0,70225.0,0.00011364]
[1773118905615,0.07118215,70243.0,70209.0,0.00144]
[1773118905616,0.25707114,70236.0,70209.0,0.00144]
[1773118905786,0.25707114,70236.0,70203.0,0.4870682]
[1773118905787,0.3418043,70228.0,70208.0,0.07827655]
[1773118905992,0.03,70226.0,70208.0,0.00706]
[1773118906390,0.22707114,70225.0,70205.0,0.00144]
[1773118906592,0.00144,70227.0,70200.0,0.00023]
[1773118906593,0.03,70218.0,70200.0,0.00023]
[1773118906837,0.03,70216.0,70200.0,0.00023]
[1773118907086,0.25707114,70216.0,70200.0,0.00023]
[1773118907265,0.00022001,70213.0,70200.0,0.00023]
[1773118907630,0.00022001,70221.0,70203.0,0.22473405]
[1773118907834,0.00022001,70221.0,70201.0,0.00144]
[1773118907835,0.07119359,70232.0,70214.0,0.01366491]
[1773118908094,0.00144,70231.0,70216.0,0.22473405]
[1773118908238,0.00144,70232.0,70216.0,0.23839896]
[1773118908435,0.0015535,70232.0,70216.0,0.23839896]
[1773118908637,0.0015535,70232.0,70216.0,0.22473405]
[1773118908978,0.0015535,70232.0,70215.0,0.00144]
[1773118908979,0.03,70230.0,70210.0,0.00144]
[1773118909172,0.03,70230.0,70200.0,0.00023]
[1773118909173,0.03,70224.0,70200.0,0.00023]
[1773118909366,0.25707114,70220.0,70203.0,0.00144]
[1773118909686,0.00144,70219.0,70201.0,0.00144]
[1773118909885,0.03,70216.0,70201.0,0.00144]
[1773118910031,0.03,70216.0,70201.0,0.22617405]
[1773118910439,0.03,70216.0,70202.0,0.07122304]
[1773118910694,0.00144,70229.0,70206.0,0.01366491]
[1773118910896,0.07118959,70235.0,70202.0,0.07122304]
[1773118910897,0.00144,70235.0,70213.0,0.01366491]
[1773118911107,0.10263018,70235.0,70216.0,0.23839896]
[1773118911318,0.10263018,70235.0,70216.0,0.23851246]
[1773118911947,0.10263018,70235.0,70218.0,0.22473405]
[1773118912151,0.10263018,70235.0,70217.0,0.07120782]
[1773118912152,0.10263018,70235.0,70220.0,0.22473405]
[1773118912374,0.10263018,70235.0,70216.0,0.0001135]
[1773118912602,0.10263018,70235.0,70216.0,0.0015535]
[1773118912772,0.03,70233.0,70217.0,0.21599357]
[1773118912980,0.03,70233.0,70217.0,0.07120782]
[1773118913160,0.03,70233.0,70218.0,0.21599357]
[1773118913362,0.07160642,70246.0,70220.0,0.22818596]
[1773118913586,0.00023,70250.0,70231.0,0.0143166]
[1773118913759,0.00023,70250.0,70230.0,0.22818596]
[1773118913760,0.07180183,70253.0,70234.0,0.21599357]
[1773118913962,0.00144,70255.0,70239.0,0.21599357]
[1773118914163,0.07260983,70255.0,70241.0,0.21599357]
[1773118914386,0.001,70246.0,70240.0,0.00144]
[1773118914739,0.001,70246.0,70236.0,0.00144]
[1773118914923,0.03,70254.0,70237.0,0.21599357]
[1773118915054,0.03011354,70254.0,70232.0,0.07119185]
[1773118915268,0.03,70250.0,70232.0,0.00144]
[1773118915466,0.00144,70249.0,70232.0,0.21743357]
[1773118915758,0.00022001,70247.0,70232.0,0.21743357]
[1773118915907,0.00144,70246.0,70234.0,0.21599357]
[1773118916503,0.00144,70247.0,70234.0,0.21599357]
[1773118916705,0.00111354,70254.0,70235.0,0.0143166]
[1773118916903,0.00111354,70254.0,70233.0,0.0711916]
[1773118916904,0.00111354,70254.0,70238.0,0.21599357]
[1773118917459,0.22323507,70253.0,70237.0,0.00144]
[1773118918035,0.22323507,70253.0,70146.0,0.26233415]
[1773118918036,0.03,70246.0,70227.0,0.07119727]
[1773118918212,0.07117235,70252.0,70225.0,0.00023]
[1773118918213,0.03,70239.0,70225.0,0.00023]
[1773118918423,0.00144,70238.0,70225.0,0.00023]
[1773118918822,0.03,70239.0,70226.0,0.21599357]
[1773118919177,0.00144,70242.0,70225.0,0.07142928]
[1773118919340,0.03,70240.0,70226.0,0.00144]
[1773118919544,0.03,70240.0,70225.0,0.0714291]
[1773118919545,0.03,70240.0,70225.0,0.00023]
[1773118919745,0.03,70236.0,70225.0,0.00023]
[1773118919946,0.07119059,70234.0,70225.0,0.00023]
[1773118920145,0.03,70233.0,70225.0,0.00023]
[1773118920575,0.03,70233.0,70214.0,0.07121061]
[1773118920775,0.03,70233.0,70217.0,0.21599357]
[1773118921137,0.03,70231.0,70216.0,0.00144]
[1773118921380,0.03,70229.0,70213.0,0.00144]
[1773118921559,0.00144,70228.0,70213.0,0.00144]
[1773118922400,0.03,70226.0,70213.0,0.07276465]
[1773118922826,0.03,70226.0,70213.0,0.28875822]
[1773118923183,0.03,70226.0,70213.0,0.0015535]
[1773118923578,0.03,70226.0,70213.0,0.07276511]
[1773118924012,0.03,70226.0,70214.0,0.21590242]
[1773118925001,0.03,70224.0,70214.0,0.21590242]
[1773118925232,0.03,70224.0,70213.0,0.0015535]
[1773118925388,0.07119971,70225.0,70208.0,0.00562]
[1773118925389,0.03,70220.0,70208.0,0.00562]
[1773118925579,0.00144,70219.0,70208.0,0.00562]
[1773118925796,0.01395156,70217.0,70202.0,0.00048]
[1773118926021,0.03,70213.0,70202.0,0.00048]
[1773118926225,0.03144,70213.0,70202.0,0.00048]
[1773118926947,0.03,70213.0,70202.0,0.00048]
[1773118927153,1.44358242,70292.0,70205.0,0.21590242]
[1773118927154,0.06341009,70235.0,70205.0,0.21590242]
[1773118927353,0.00144,70234.0,70213.0,0.21590242]
[1773118927685,0.00144,70233.0,70216.0,0.0143166]
[1773118927892,0.00562,70236.0,70217.0,0.21590242]
[1773118928096,0.03,70235.0,70220.0,0.0143166]
[1773118928331,0.03,70235.0,70221.0,0.21734242]
[1773118929059,0.07119059,70234.0,70221.0,0.21734242]
[1773118929264,0.07119059,70234.0,70222.0,0.07120275]
[1773118929265,0.03,70233.0,70222.0,0.07120275]
[1773118929501,0.03,70233.0,70223.0,0.21590242]
[1773118930210,0.03,70232.0,70223.0,0.21590242]
[1773118930424,0.03,70232.0,70221.0,0.07264349]
[1773118930859,0.2396024,70231.0,70213.0,0.07121156]
[1773118931067,0.03,70228.0,70214.0,0.24918447]
[1773118931323,0.03,70226.0,70215.0,0.21040143]
[1773118931527,0.03,70226.0,70215.0,0.07120985]
[1773118932178,0.03,70226.0,70217.0,0.10999289]
[1773118932400,0.0124071,70242.0,70215.0,0.22850487]
[1773118932598,0.07118555,70239.0,70218.0,0.21590242]
[1773118932804,0.00144,70234.0,70220.0,0.21590242]
[1773118933213,0.00144,70235.0,70222.0,0.0838052]
[1773118933454,0.07117653,70248.0,70224.0,0.21590242]
[1773118933658,0.07116818,70257.0,70232.0,0.01260245]
[1773118933829,0.07115797,70267.0,70236.0,0.01260245]
[1773118934046,0.07158283,70269.0,70242.0,0.01260245]
[1773118934339,0.07158283,70269.0,70243.0,0.22994487]
[1773118934498,0.03,70268.0,70243.0,0.22994487]
[1773118934721,0.03,70262.0,70242.0,0.00144]
[1773118934938,0.03,70258.0,70242.0,0.00144]
[1773118935137,0.00144,70257.0,70242.0,0.00144]
[1773118935351,0.2271953,70260.0,70243.0,0.07103533]
[1773118935352,0.03,70255.0,70243.0,0.07103533]
[1773118935729,0.03,70253.0,70237.0,0.16668943]
[1773118935928,0.03,70249.0,70236.0,0.00562]
[1773118936128,0.00144,70248.0,70236.0,0.00562]
[1773118936768,0.00144,70247.0,70237.0,0.07118755]
[1773118937479,0.03,70245.0,70237.0,0.07118755]
[1773118937926,0.03,70245.0,70236.0,0.07680755]
[1773118938127,0.03,70245.0,70236.0,0.00562]
[1773118938332,0.03,70242.0,70229.0,0.07119499]
[1773118938682,0.03011354,70242.0,70229.0,0.07119499]
[1773118939231,0.00144,70241.0,70229.0,0.07119499]
[1773118939431,0.03144,70241.0,70229.0,0.07119499]
[1773118939838,0.00144,70241.0,70229.0,0.07119499]
[1773118940074,0.00088,70241.0,70229.0,0.07119499]
[1773118940851,0.00088,70241.0,70230.0,0.21590242]
[1773118941065,0.00144,70245.0,70231.0,0.01212736]
[1773118941274,0.00144,70245.0,70232.0,0.01287224]
[1773118941478,0.07117843,70246.0,70236.0,0.01287224]
[1773118941479,0.00144,70246.0,70236.0,0.01287224]
[1773118941745,0.00144,70246.0,70238.0,0.01287224]
[1773118942465,0.03144,70246.0,70234.0,0.01212631]
[1773118942692,0.2586353,70246.0,70233.0,0.0711916]
[1773118942894,0.03144,70246.0,70234.0,0.01287224]
[1773118943358,0.03144,70246.0,70233.0,0.0711916]
[1773118943558,0.03,70242.0,70231.0,0.00011354]
[1773118944118,0.2571953,70242.0,70227.0,0.07119768]
[1773118944337,0.25730877,70242.0,70227.0,0.07119768]
[1773118944744,0.25730877,70242.0,70225.0,0.07142768]
[1773118945385,0.25730877,70242.0,70225.0,0.00023]
[1773118945585,0.03,70236.0,70225.0,0.00023]
[1773118945785,0.00144,70235.0,70225.0,0.00023]
[1773118945938,0.00144,70235.0,70225.0,0.07142928]
[1773118946139,0.00144,70235.0,70225.0,0.00023]
[1773118947236,0.2586353,70235.0,70215.0,0.07120951]
[1773118947440,0.2571953,70233.0,70216.0,0.23789774]
[1773118947642,0.2571953,70233.0,70216.0,0.07120831]
[1773118948069,0.2571953,70233.0,70216.0,0.23789774]
[1773118948715,0.2571953,70233.0,70213.0,0.0002]
[1773118949126,0.2571953,70233.0,70213.0,0.07141167]
[1773118949532,0.03,70231.0,70213.0,0.07141167]
[1773118949736,0.03,70231.0,70214.0,0.01260245]
[1773118949936,0.03,70227.0,70213.0,0.07141167]
[1773118950113,0.03,70225.0,70213.0,0.07141167]
[1773118950522,0.00144,70224.0,70216.0,0.0002]
[1773118950894,0.00144,70223.0,70216.0,0.0002]
[1773118951461,0.03,70224.0,70216.0,0.0002]
[1773118951614,0.00144,70226.0,70218.0,0.01260245]
[1773118951819,0.07119261,70232.0,70218.0,0.01260245]
[1773118951820,0.00144,70227.0,70218.0,0.01260245]
[1773118952020,0.03,70232.0,70218.0,0.21590242]
[1773118952219,0.03,70232.0,70219.0,0.21590242]
[1773118952428,0.03,70232.0,70217.0,0.07264782]
[1773118952891,0.03,70232.0,70217.0,0.08525027]
[1773118953093,0.03,70231.0,70217.0,0.08525027]
[1773118953748,0.00144,70233.0,70220.0,0.22712111]
[1773118953955,0.00144,70239.0,70223.0,0.02954202]
[1773118954178,0.00144,70240.0,70226.0,0.21813387]
[1773118954380,0.00144,70240.0,70229.0,0.02954202]
[1773118955043,0.00144,70240.0,70224.0,0.21957387]
[1773118955212,0.00144,70240.0,70224.0,0.24918517]
[1773118955412,0.00144,70240.0,70224.0,0.0310513]
[1773118956145,0.03,70239.0,70225.0,0.07119971]
[1773118956312,0.03,70235.0,70219.0,0.07120478]
[1773118956512,0.00144,70234.0,70219.0,0.07120478]
[1773118956862,0.03,70232.0,70217.0,0.07120681]
[1773118957069,0.23813853,70230.0,70217.0,0.07120681]
[1773118957994,0.23813853,70230.0,70216.0,0.07140871]
[1773118958192,0.03,70224.0,70209.0,0.07121505]
[1773118958418,0.03,70218.0,70203.0,0.07122202]
[1773118958616,0.23813853,70214.0,70203.0,0.07122202]
[1773118958965,0.23813853,70214.0,70193.0,0.10106798]
[1773118958966,0.03,70209.0,70192.0,0.0714328]
[1773118959118,0.00144,70208.0,70192.0,0.0714328]
[1773118959509,0.00144,70208.0,70192.0,0.07181179]
[1773118960155,0.03,70206.0,70203.0,0.0002]
[1773118960427,0.07121025,70215.0,70203.0,0.0002]
[1773118960428,0.20813853,70221.0,70203.0,0.10142804]
[1773118960597,0.00144,70220.0,70203.0,0.10142804]
[1773118960832,0.00144,70220.0,70203.0,0.0002]
[1773118961180,0.20813853,70219.0,70195.0,0.07122955]
[1773118961393,0.03,70216.0,70193.0,0.07123141]
[1773118961608,0.03,70212.0,70193.0,0.07123141]
[1773118961810,0.03,70208.0,70192.0,0.07181173]
[1773118962012,0.03,70206.0,70192.0,0.07181173]
[1773118962237,0.03,70204.0,70192.0,0.07181173]
[1773118962482,0.03,70204.0,70192.0,0.00057899]
[1773118962702,0.00144,70203.0,70192.0,0.07181185]
[1773118964251,0.03,70201.0,70192.0,0.0002166]
[1773118964464,0.03,70199.0,70187.0,0.07123807]
[1773118964668,0.03037821,70199.0,70187.0,0.07123807]
[1773118964880,0.03037821,70199.0,70185.0,0.07143974]
[1773118964881,0.03,70195.0,70185.0,0.07143974]
[1773118965091,0.00144,70194.0,70185.0,0.07143974]
[1773118965310,0.00144,70194.0,70185.0,0.0002]
[1773118965599,0.00144,70194.0,70182.0,0.00015]
[1773118966004,0.23813853,70191.0,70180.0,0.0060235]
[1773118966225,0.03,70189.0,70180.0,0.0060235]
[1773118966487,0.00144,70188.0,70180.0,0.0060235]
[1773118967207,0.00144,70188.0,70175.0,0.00023]
[1773118967324,0.03,70187.0,70175.0,0.00023]
[1773118967571,0.03,70187.0,70175.0,0.07147951]
[1773118967786,0.03,70187.0,70175.0,0.07148017]
[1773118967954,0.07123521,70192.0,70175.0,0.07148017]
[1773118967955,0.07123093,70195.0,70184.0,0.0349561]
[1773118968193,0.00144,70194.0,70184.0,0.0349561]
[1773118968366,0.03,70192.0,70184.0,0.1061971]
[1773118968546,0.03,70192.0,70184.0,0.0349561]
[1773118969332,0.03,70193.0,70184.0,0.0349561]
[1773118969528,0.03,70193.0,70184.0,0.1061971]
[1773118969890,0.00037821,70199.0,70188.0,0.21813387]
[1773118970016,0.00037821,70199.0,70189.0,0.03506531]
[1773118970366,0.00144,70198.0,70190.0,0.07123521]
[1773118970573,0.03,70197.0,70188.0,0.0712368]
[1773118971349,0.03,70197.0,70184.0,0.0002]
[1773118971561,0.03,70197.0,70184.0,0.07144064]
[1773118973325,0.03,70195.0,70184.0,0.07144064]
[1773118975205,0.03,70196.0,70184.0,0.07144064]
[1773118975407,0.03,70194.0,70185.0,0.03596867]
[1773118976560,0.03,70196.0,70185.0,0.03596867]
[1773118976763,0.10122933,70196.0,70185.0,0.03596867]
[1773118976938,0.00144,70195.0,70185.0,0.03596867]
[1773118977172,0.03,70196.0,70185.0,0.03596867]
[1773118977384,0.10120478,70220.0,70190.0,0.03630327]
[1773118977574,0.20695909,70233.0,70210.0,0.22712111]
[1773118977710,0.20695909,70233.0,70200.0,0.45424222]
[1773118977711,0.20695909,70233.0,70214.0,0.03630327]
[1773118977915,0.00144,70229.0,70216.0,0.21342952]
[1773118978257,0.00144,70229.0,70210.0,0.22712111]
[1773118978258,0.00144,70229.0,70219.0,0.03623018]
[1773118978817,0.03,70228.0,70213.0,0.03623018]
[1773118979258,0.03,70228.0,70216.0,0.21342952]
[1773118979413,0.03,70228.0,70219.0,0.05400525]
[1773118979833,0.00022001,70232.0,70221.0,0.21342952]
[1773118980023,0.00022001,70232.0,70222.0,0.05400525]
[1773118980196,0.03,70231.0,70216.0,0.07132129]
[1773118980377,0.03,70231.0,70200.0,0.43810496]
[1773118980378,0.20695909,70226.0,70203.0,0.05400525]
[1773118980590,0.03,70223.0,70204.0,0.07122098]
[1773118980924,0.03,70221.0,70205.0,0.21342952]
[1773118981123,0.03,70221.0,70208.0,0.05452087]
[1773118981351,0.03,70221.0,70210.0,0.07121492]
[1773118981554,0.03,70221.0,70211.0,0.05452087]
[1773118981754,0.10120402,70221.0,70211.0,0.05452087]
[1773118981948,0.10120402,70221.0,70202.0,0.07122304]
[1773118981949,0.03,70219.0,70202.0,0.07122304]
[1773118982230,0.03,70217.0,70202.0,0.07122304]
[1773118982529,0.03,70217.0,70206.0,0.05452087]
[1773118982677,0.03,70217.0,70207.0,0.05452087]
[1773118983092,0.03,70214.0,70201.0,0.07122405]
[1773118983296,0.03,70214.0,70200.0,0.00023]
[1773118983297,0.03,70210.0,70200.0,0.07145485]
[1773118983699,0.00144,70209.0,70200.0,0.07145485]
[1773118984808,0.03,70213.0,70200.0,0.07145485]
[1773118984809,0.00144,70208.0,70200.0,0.07145485]
[1773118985015,0.00144,70208.0,70202.0,0.05959067]
[1773118985337,0.00144,70208.0,70204.0,0.05959067]
[1773118986124,0.00144,70208.0,70203.0,0.07122202]
[1773118986460,0.00144,70208.0,70191.0,0.13082487]
[1773118986461,0.03,70207.0,70191.0,0.13082487]
[1773118986706,0.03,70205.0,70191.0,0.13082487]
[1773118987463,0.10122015,70205.0,70191.0,0.13082487]
[1773118987806,0.03,70203.0,70189.0,0.0712342]
[1773118987955,0.00144,70202.0,70189.0,0.0712342]
[1773118988163,0.00144,70202.0,70184.0,0.21928748]
[1773118988164,0.03,70200.0,70186.0,0.07123724]
[1773118988505,0.03,70198.0,70184.0,0.07144034]
[1773118988860,0.24861479,70198.0,70184.0,0.07144034]
[1773118989064,0.24861479,70198.0,70184.0,0.07181855]
[1773118989307,0.03,70201.0,70184.0,0.07181855]
[1773118989511,0.10122608,70199.0,70184.0,0.07181855]
[1773118989863,0.10122608,70199.0,70185.0,0.05959067]
[1773118991223,0.03,70195.0,70184.0,0.00057821]
[1773118991426,0.00144,70194.0,70184.0,0.07181908]
[1773118991753,0.072672,70194.0,70183.0,0.07124145]
[1773118991938,0.24861479,70193.0,70182.0,0.07124333]
[1773118992486,0.03,70193.0,70182.0,0.07124333]
[1773118992975,0.03,70192.0,70177.0,0.05979067]
[1773118993179,0.24861479,70190.0,70177.0,0.0002]
[1773118993382,0.24861479,70190.0,70169.0,0.0002]
[1773118993383,0.24861479,70190.0,70170.0,0.07125467]
[1773118993616,0.03,70188.0,70170.0,0.07136832]
[1773118993918,0.00144,70187.0,70170.0,0.07136832]
[1773118994145,0.03,70186.0,70170.0,0.07136832]
[1773118994535,0.21861479,70185.0,70170.0,0.00011365]
[1773118994682,0.03,70182.0,70170.0,0.00011365]
[1773118995085,0.00144,70181.0,70170.0,0.00011365]
[1773118995753,0.03144,70181.0,70170.0,0.00011365]
[1773118996377,0.03144,70181.0,70171.0,0.05959067]
[1773118996581,0.07122811,70198.0,70171.0,0.05959067]
[1773118996720,0.03,70198.0,70180.0,0.22712111]
[1773118997064,0.03,70198.0,70184.0,0.05959067]
[1773118997267,0.00144,70197.0,70184.0,0.05959067]
[1773118997607,0.00144,70196.0,70185.0,0.07124029]
[1773118997833,0.03,70197.0,70185.0,0.07124029]
[1773118998073,0.00144,70196.0,70186.0,0.05959067]
[1773118998324,0.00144,70196.0,70185.0,0.07124029]
[1773118999370,0.171,70223.0,70185.0,0.07124029]
[1773118999570,0.171,70223.0,70180.0,0.22712111]
[1773118999571,0.07120072,70224.0,70199.0,0.07122608]
[1773118999794,0.07143058,70225.0,70201.0,0.05865368]
[1773118999996,0.00144,70224.0,70204.0,0.21764748]
[1773119000305,0.00144,70224.0,70205.0,0.05865368]
[1773119000509,0.03,70220.0,70198.0,0.07122608]
[1773119000687,0.03,70214.0,70189.0,0.21764748]
[1773119000888,0.03,70208.0,70189.0,0.07123564]
[1773119001087,0.00144,70213.0,70182.0,0.05865368]
[1773119001088,0.03,70204.0,70184.0,0.07124116]
[1773119001269,0.03,70200.0,70186.0,0.0002]
[1773119001608,0.03,70198.0,70186.0,0.0002]
[1773119001905,0.03,70196.0,70186.0,0.0002]
[1773119002886,0.03037828,70196.0,70186.0,0.0002]
[1773119003906,0.03,70194.0,70186.0,0.0002]
[1773119005738,0.03,70194.0,70180.0,0.07686508]
[1773119005929,0.03144,70193.0,70184.0,0.06490368]
[1773119006146,0.03144,70193.0,70184.0,0.28255116]
[1773119006543,0.03144,70193.0,70185.0,0.06490368]
[1773119006855,0.00037828,70196.0,70187.0,0.28255116]
[1773119007053,0.03037828,70196.0,70187.0,0.28255116]
[1773119007660,0.00144,70195.0,70187.0,0.28255116]
[1773119008100,0.00144,70194.0,70188.0,0.07123724]
[1773119008317,0.03,70195.0,70188.0,0.07123724]
[1773119008524,0.00144,70194.0,70188.0,0.07123724]
[1773119009663,0.00037828,70196.0,70188.0,0.07123724]
[1773119009810,0.00144,70194.0,70188.0,0.07123724]
[1773119010636,0.00037828,70196.0,70188.0,0.07123724]
[1773119010875,0.00144,70194.0,70188.0,0.07123724]
[1773119011072,0.00144,70196.0,70188.0,0.13614092]
[1773119011789,0.00144,70196.0,70186.0,0.07143868]
[1773119012409,0.00144,70196.0,70187.0,0.06490368]
[1773119012558,0.03,70198.0,70188.0,0.21764748]
[1773119012762,0.00144,70202.0,70191.0,0.06490368]
[1773119012959,0.00144,70208.0,70195.0,0.06490368]
[1773119013163,0.07121594,70210.0,70197.0,0.06490368]
[1773119013361,0.03,70209.0,70200.0,0.06490368]
[1773119013610,0.00144,70211.0,70203.0,0.20356978]
[1773119013811,0.00144,70211.0,70204.0,0.06490368]
[1773119013985,0.00144,70211.0,70188.0,0.16817634]
[1773119013986,0.00022001,70217.0,70206.0,0.20356978]
[1773119014393,0.00022001,70217.0,70207.0,0.13612164]
[1773119014602,0.10142848,70217.0,70207.0,0.13612164]
[1773119015007,0.00144,70216.0,70207.0,0.13612164]
[1773119015216,0.03,70215.0,70207.0,0.06490368]
[1773119015404,0.00144,70214.0,70196.0,0.06490368]
[1773119016427,0.03,70212.0,70198.0,0.06490368]
[1773119016630,0.03,70212.0,70199.0,0.06490368]
[1773119017329,0.03,70212.0,70197.0,0.07142811]
[1773119017330,0.03,70212.0,70197.0,0.0002]
[1773119017537,0.03,70208.0,70197.0,0.0002]
[1773119017715,0.00144,70207.0,70197.0,0.0002]
[1773119018882,0.07121898,70206.0,70197.0,0.0002]
[1773119019093,0.03,70205.0,70197.0,0.0002]
[1773119021366,0.03,70203.0,70197.0,0.0002]
[1773119021573,0.07120327,70222.0,70197.0,0.07142766]
[1773119021768,0.00144,70216.0,70201.0,0.07193035]
[1773119021973,0.00144,70216.0,70205.0,0.07193035]
[1773119022544,0.00144,70215.0,70205.0,0.07193035]
[1773119023311,0.03144,70215.0,70206.0,0.07121898]
[1773119023510,0.07120088,70224.0,70206.0,0.07121898]
[1773119023511,0.00144,70218.0,70207.0,0.07193035]
[1773119023733,0.07165069,70225.0,70209.0,0.07193035]
[1773119023933,0.00144,70224.0,70209.0,0.20356978]
[1773119024135,0.00144,70224.0,70211.0,0.07193035]
[1773119024532,0.03144,70224.0,70212.0,0.07193035]
[1773119024764,0.03,70220.0,70202.0,0.07122219]
[1773119024939,0.03,70216.0,70202.0,0.07122219]
[1773119025264,0.03,70216.0,70200.0,0.07193035]
[1773119025265,0.00144,70215.0,70200.0,0.07193035]
[1773119025617,0.03144,70214.0,70201.0,0.07122405]
[1773119026069,0.03,70214.0,70201.0,0.07122405]
[1773119026301,0.00144,70213.0,70202.0,0.07193035]
[1773119026785,0.03,70214.0,70202.0,0.07193035]
[1773119026786,0.00144,70212.0,70202.0,0.07193035]
[1773119027111,0.00144,70212.0,70203.0,0.07193035]
[1773119028166,0.00144,70212.0,70205.0,0.07193035]
[1773119028944,0.07120815,70217.0,70204.0,0.07122101]
[1773119028945,0.20758,70238.0,70215.0,0.20356978]
[1773119029142,0.0303229,70233.0,70219.0,0.20356978]
[1773119029384,0.0303229,70233.0,70222.0,0.07193035]
[1773119029592,0.0317629,70233.0,70223.0,0.07193035]
[1773119029872,0.0303229,70233.0,70224.0,0.07193035]
[1773119030034,0.1026344,70231.0,70224.0,0.07193035]
[1773119030399,0.1026344,70231.0,70223.0,0.07120158]
[1773119030624,0.03144,70231.0,70223.0,0.07120158]
[1773119031030,0.03,70230.0,70223.0,0.07120158]
[1773119031636,0.07117843,70246.0,70227.0,0.20356978]
[1773119031801,0.07117843,70246.0,70229.0,0.20356978]
[1773119032025,0.03,70244.0,70233.0,0.14312195]
[1773119032224,0.00144,70243.0,70234.0,0.07193035]
[1773119032429,0.03,70244.0,70236.0,0.20356978]
[1773119032737,0.03,70244.0,70238.0,0.07193035]
[1773119032946,0.07180215,70253.0,70236.0,0.00144]
[1773119032947,0.00063,70253.0,70236.0,0.00144]
[1773119033137,0.00144,70258.0,70240.0,0.07172682]
[1773119033339,0.00144,70258.0,70243.0,0.20264189]
[1773119033538,0.03,70261.0,70247.0,0.20264189]
[1773119033741,0.03,70261.0,70248.0,0.07172682]
[1773119033986,0.001,70253.0,70248.0,0.07172682]
[1773119034188,0.03144,70260.0,70250.0,0.07172682]
[1773119034545,0.0315536,70260.0,70250.0,0.07172682]
[1773119035322,0.03,70259.0,70229.0,0.07119565]
[1773119035625,0.00022001,70244.0,70231.0,0.07316682]
[1773119035795,0.19855521,70252.0,70231.0,0.07316682]
[1773119035796,0.00022001,70252.0,70231.0,0.20264189]
[1773119035960,0.00144,70262.0,70234.0,0.20264189]
[1773119036240,0.00022001,70259.0,70239.0,0.20264189]
[1773119036450,0.00022001,70259.0,70239.0,0.27436871]
[1773119036649,0.00022001,70259.0,70236.0,0.07118856]
[1773119036926,0.03,70257.0,70236.0,0.07118856]
[1773119037153,0.03,70253.0,70236.0,0.07118856]
[1773119037304,0.00144,70252.0,70236.0,0.07118856]
[1773119038087,0.00144,70252.0,70236.0,0.07172682]
[1773119038088,0.03,70250.0,70236.0,0.07172682]